Cogmind - Beta 12 @@@ ROGUE MODE // 2023.03.17 @ 01:18:24 Player: ArabianSandBoa Result: Destroyed by 8R-AWN with 8R-AWN's Boregun Performance ------------- Evolutions (0) 0 Regions Visited (3) 600 Robots Destroyed (30) 150 Value Destroyed (629) 629 Prototype IDs (25) 500 Alien Tech Used (0) 0 Bonus (300) 300 TOTAL SCORE: 2179 Bonus ------- Aligned with FarCom 300 Cogmind --------- Core Integrity 0/250 Matter 250/300 Energy 100/100 System Corruption 7% Temperature Cool (0) Movement Rolling (80) Location -10/Exiles Parts ------- > --- POWER (1) -------- (None) > --- PROPULSION (2) --- Wheel > --- UTILITY (2) ------ (None) > --- WEAPON (2) ------- Light Cannon Longsword +1 > --- INVENTORY (5) ---- Light Treads Light Cannon Peak State ------------ > --- POWER ------------ Improved Ion Engine > --- PROPULSION ------- Light Treads Light Treads > --- UTILITY ---------- High-capacity Storage Unit Weapon Shielding > --- WEAPON ----------- Longsword +1 > --- INVENTORY -------- Reinforced Deuterium Engine Light Fission Core Light Fission Core Wheel Wheel Modified TNC Trap Reconfigurator Light Cannon Light Cannon Grenade Launcher [Rating: 17] Favorites ----------- Power Improved Ion Engine Engine Improved Ion Engine Propulsion Light Treads Treads Light Treads Leg Aluminum Leg Wheel Wheel Utility Huge Storage Unit Device Heat Sink Storage Huge Storage Unit Processor Transport Network Coupler Protection Weapon Shielding Weapon Medium Laser Energy Gun Medium Laser Ballistic Cannon Light Cannon Launcher Grenade Launcher Slashing Weapon Longsword +1 Build | -11 -10 -10 -10 ------- Run | Jun Mat Min Exi Slots Evolved . | . . . . Power . | . . . . Propulsion . | . . . . Utility . | . . . . Weapon . | . . . . Parts Attached 34 | 1 20 . 13 Power 4 | . 4 . . Engine 4 | . 4 . . Core . | . . . . Reactor . | . . . . Propulsion 11 | . 7 . 4 Treads 6 | . 4 . 2 Leg . | . . . . Wheel 5 | . 3 . 2 Hover . | . . . . Flight . | . . . . Utility 9 | . 5 . 4 Device 1 | . 1 . . Storage 5 | . 3 . 2 Processor 1 | . 1 . . Hackware . | . . . . Protection 2 | . . . 2 Artifact . | . . . . Weapon 10 | 1 4 . 5 Energy Gun 2 | 1 1 . . Energy Cannon . | . . . . Ballistic Gun . | . . . . Ballistic Cannon 4 | . 2 . 2 Launcher 3 | . 1 . 2 Special Weapon . | . . . . Impact Weapon . | . . . . Slashing Weapon 1 | . . . 1 Piercing Weapon . | . . . . Special Melee Weapon . | . . . . Unidentified Prototypes 1 | . . . 1 Parts Lost 8 | . 4 . 4 Power 3 | . 2 . 1 Propulsion 2 | . 1 . 1 Utility 1 | . . . 1 Weapon 2 | . 1 . 1 Highest Loss Streak 3 | . 2 . 3 To Critical Strikes 2 | . . . 2 Average Slot Usage (%) 88 | . 96 90 74 Engine 13 | . 13 14 13 Treads 16 | . 14 14 22 Leg 2 | . 5 . . Wheel 8 | . 7 14 5 Device 5 | . 4 14 2 Storage 13 | . 14 14 11 Processor 3 | . 6 . . Protection 2 | . . . 9 Energy Gun 13 | . 23 9 . Ballistic Cannon 4 | . 4 9 1 Slashing Weapon 1 | . . . 5 Naked Turns . | . . . . Heaviest Build 93 | 12 93 93 88 Greatest Support 40 | 20 40 10 40 Greatest Overweight (x) 9 | . 9 9 8 Average Overweight (x) 4 | . 2 8 3 Largest Inventory Capacity 25 | 8 25 25 25 Average Capacity 21 | 8 22 25 19 Most Carried 20 | 6 11 14 20 Average Carried 10 | 6 8 12 10 Final Capacity 25 | 8 25 25 5 Final Carried 14 | 6 11 14 2 Class Distribution -------------------- 100% | Mutant Dominant Class ---------------- Mutant | -10/Materials Mutant | -10/Mines Mutant | -10/Exiles Resources | -11 -10 -10 -10 ----------- Run | Jun Mat Min Exi Matter Collected 1103 | 168 231 . 704 Remotely . | . . . . Salvage Created 842 | . 836 . 6 Parts 50 | . 50 . . Haulers Intercepted 2 | . 2 . . Recyclers Shooed 1 | . 1 . . Parts Field Recycled . | . . . . Retrieved Matter . | . . . . Parts Self-Destructed . | . . . . Prevented . | . . . . Kills | -11 -10 -10 -10 ------- Run | Jun Mat Min Exi Combat Hostiles Destroyed 20 | . 19 . 1 Guns 12 | . 12 . . Cannons 6 | . 5 . 1 AOE 2 | . 2 . . Classes Destroyed 9 | . 8 . 1 Worker 2 | . 2 . . Builder 1 | . 1 . . Hauler 2 | . 2 . . Mechanic 1 | . 1 . . Operator 2 | . 2 . . Watcher 3 | . 3 . . Swarmer 6 | . 6 . . Grunt 13 | . 13 . . Assembled 1 | . . . 1 Best Kill Streak 6 | . 6 . 1 Combat Bots Only 4 | . 4 . 1 Max Kills in Single Turn 2 | . 2 . 1 Gunslinging . | . . . . Exploded 1 | . 1 . . Melee . | . . . . Uniques/NPCs Destroyed . | . . . . Combat | -11 -10 -10 -10 -------- Run | Jun Mat Min Exi Damage Taken 1090 | . 770 . 320 Core 264 | . 171 . 93 Absorbed by Shields . | . . . . Redirected to Shielding 20 | . . . 20 Core Remaining (%) 100 | 100 . . . Volleys Fired 98 | . 92 . 6 Largest 2 | . 2 . 1 Hottest 100 | . 100 . 35 Shots Fired 172 | . 166 . 6 Gun 139 | . 139 . . Cannon 30 | . 25 . 5 Launcher 3 | . 2 . 1 Special . | . . . . Kinetic 30 | . 25 . 5 Thermal 139 | . 139 . . Explosive 3 | . 2 . 1 Electromagnetic . | . . . . Robot Hit Streak 16 | . 16 . 1 Robot Miss Streak 8 | . 8 . 1 Penetration Max . | . . . . Secondary Targets 3 | . 3 . . Max Gunslinging Chain 1 | . 1 . . Shots Hit Robots 114 | . 103 . 11 Core Hits 49 | . 45 . 4 Critical Kills . | . . . . Critical Parts Destroyed . | . . . . Critical Strikes 9 | . 7 . 2 Burn 7 | . 7 . . Sever 2 | . . . 2 Melee Attacks 11 | . . . 11 Impact . | . . . . Slashing 11 | . . . 11 Piercing . | . . . . Sneak Attacks . | . . . . Combat Hostiles . | . . . . Follow-up Attacks . | . . . . Damage Inflicted 2055 | . 1614 . 441 Guns 1170 | . 1170 . . Cannons 379 | . 341 . 38 Explosions 103 | . 103 . . Melee 403 | . . . 403 Ramming . | . . . . Kinetic 379 | . 341 . 38 Thermal 1170 | . 1170 . . Explosive 103 | . 103 . . Electromagnetic . | . . . . Impact . | . . . . Slashing 403 | . . . 403 Piercing . | . . . . Highest Corruption 7 | . 7 7 7 Average Corruption 6 | . 4 7 7 Corruption Purged . | . . . . Corruption Blocked . | . . . . Effects 73 | . 32 15 26 Message Errors 15 | . 4 3 8 Matter Fused 25 | . 11 5 9 Heat Flow Errors 11 | . 5 3 3 Energy Discharges 7 | . 4 1 2 Parts Rejected 1 | . 1 . . Parts Fused 1 | . 1 . . Data Loss (minor) 8 | . 4 1 3 Data Loss (major) 3 | . 1 2 . Alerts 2 | . 1 . 1 Overload Shots . | . . . . Overflow Damage 9 | . 5 . 4 Projectiles 5 | . 5 . . Explosions 4 | . . . 4 Melee . | . . . . Knockbacks 4 | . 4 . . Impact . | . . . . Kinetic 4 | . 4 . . Secondary . | . . . . Self-Inflicted Damage 15 | . . . 15 Shots 1 | . . . 1 Rammed . | . . . . Targets Rammed . | . . . . Kicked . | . . . . Crushed . | . . . . Highest Temperature 350 | . 350 221 191 Average Temperature 102 | . 103 97 90 Received Heat Transfer 339 | . 339 . . Effects 4 | . 4 . . Interference 4 | . 4 . . Siege Activations . | . . . . Robots Corrupted . | . . . . Combat Hostiles . | . . . . Parts Fried . | . . . . Impact Corruptions . | . . . . Robots Melted . | . . . . Combat Hostiles . | . . . . Parts Melted 4 | . 4 . . Heat Transferred 3811 | . 3811 . . Parts Sabotaged . | . . . . Parts Stolen . | . . . . Parts Stripped . | . . . . Power Chain Reactions . | . . . . Missiles Intercepted . | . . . . Alert | -11 -10 -10 -10 ------- Run | Jun Mat Min Exi Peak Influence 320 | . 320 121 . Initial 121 | . . 121 . Average 111 | . 124 81 . Maximum Alert Level 1 | . 1 . . Low Security (%) 80 | 100 72 100 . Level 1 19 | . 27 . . Level 2 . | . . . . Level 3 . | . . . . Level 4 . | . . . . Level 5 . | . . . . High Security . | . . . . Max Security . | . . . . Squads Dispatched 6 | . 6 . . Investigation 4 | . 4 . . Extermination . | . . . . Reinforcement 2 | . 2 . . Assault . | . . . . Garrison . | . . . . Intercept . | . . . . Searches Triggered . | . . . . Construction Impeded . | . . . . Haulers Reinforced . | . . . . Active Scanning Responses . | . . . . Cargo Convoy Interrupts . | . . . . Stealth | -11 -10 -10 -10 --------- Run | Jun Mat Min Exi Distress Signals . | . . . . Communications Jammed . | . . . . Distress Signals . | . . . . Times Spotted 28 | . 25 . 3 Peak Tracking Total 9 | . 3 . 9 Tactical Retreats 1 | . 1 . . Traps | -11 -10 -10 -10 ------- Run | Jun Mat Min Exi Traps Triggered 6 | . 6 . . Indirectly . | . . . . Trap Hack Attempts . | . . . . Triggered . | . . . . Disarmed . | . . . . Reprogrammed . | . . . . Reused . | . . . . Traps Extracted . | . . . . Installed . | . . . . Triggered . | . . . . Exploded 3 | . . . 3 Machines | -11 -10 -10 -10 ---------- Run | Jun Mat Min Exi Machines Disabled 4 | . 1 . 3 Max in Single Turn 1 | . 1 . 1 Machines Repaired . | . . . . Machines Sabotaged . | . . . . Overloaded Fab Kills . | . . . . Hacking | -11 -10 -10 -10 --------- Run | Jun Mat Min Exi Machines Accessed 7 | . 6 . 1 Terminals 4 | . 4 . . Fabricators . | . . . . Repair Stations . | . . . . Recycling Units 2 | . 2 . . Scanalyzers . | . . . . Garrison Access . | . . . . Total Hacks 21 | . 20 . 1 Successful 15 | . 14 . 1 Failed 6 | . 6 . . Catastrophic . | . . . . Database Lockouts . | . . . . Manual 14 | . 13 . 1 Terminals 13 | . 13 . . Fabricators . | . . . . Repair Stations . | . . . . Recycling Units 7 | . 7 . . Scanalyzers . | . . . . Garrison Access . | . . . . Terminal Hacks 6 | . 5 . 1 Robot Analysis 3 | . 3 . . Prototype ID Bank 1 | . 1 . . Registered Components 1 | . 1 . . EX-Prototype ID Bank 1 | . . . 1 Fabricator Hacks . | . . . . Repair Station Hacks . | . . . . Recycling Unit Hacks 2 | . 2 . . Report Inventory 2 | . 2 . . Scanalyzer . | . . . . Garrison Access Hacks . | . . . . Unauthorized Hacks 7 | . 7 . . Terminals 2 | . 2 . . Botnet 2 | . 2 . . Fabricators . | . . . . Repair Stations . | . . . . Recycling Units 5 | . 5 . . Monitor 1 | . 1 . . Reject 1 | . 1 . . Mask 1 | . 1 . . Tunnel 2 | . 2 . . Scanalyzers . | . . . . Garrison Access . | . . . . Data Cores Recovered . | . . . . Used . | . . . . Hacking Detections 4 | . 4 . . Full Trace Events 1 | . 1 . . Feedback Events . | . . . . Feedback Blocked . | . . . . Robot Schematics Acquired . | . . . . Robots Built . | . . . . Authchips . | . . . . Time . | . . . . Total Robot Build Rating . | . . . . Part Schematics Acquired . | . . . . Parts Built . | . . . . Authchips . | . . . . Time . | . . . . Total Part Build Rating . | . . . . Parts Repaired . | . . . . Time . | . . . . Parts Recycled . | . . . . Recycled Matter . | . . . . Retrieved Matter . | . . . . Retrieved Components . | . . . . Parts Scanalyzed . | . . . . Part Schematics Acquired . | . . . . Parts Damaged . | . . . . Bothacking | -11 -10 -10 -10 ------------ Run | Jun Mat Min Exi Used RIF Installer . | . . . . Robots Hacked . | . . . . Non-combat . | . . . . Combat . | . . . . Robot Hacks Applied . | . . . . Relay Couplers Released . | . . . . Fabnet Peak Effective % . | . . . . Robots Rewired . | . . . . Allies Hacked . | . . . . Hacks Repelled . | . . . . Allies | -11 -10 -10 -10 -------- Run | Jun Mat Min Exi Total Allies . | . . . . Largest Group . | . . . . Highest-Rated Group . | . . . . Highest-Rated Ally . | . . . . Total Orders . | . . . . Ally Attacks . | . . . . Total Damage . | . . . . Kills . | . . . . Allies Corrupted . | . . . . Allies Melted . | . . . . Intel | -11 -10 -10 -10 ------- Run | Jun Mat Min Exi Robot Analysis Total 3 | . 3 . . Derelict Logs Recovered 2 | . . 2 . Drone Launches . | . . . . Drone Recoveries . | . . . . Exploration | -11 -10 -10 -10 ------------- Run | Jun Mat Min Exi Turns Passed 3015 | 4 1455 591 965 Spaces Moved 1215 | 3 521 281 410 Core . | . . . . Treads 390 | . 143 . 247 Legs 174 | 3 171 . . Wheels 651 | . 207 281 163 Hover . | . . . . Flight . | . . . . Fastest Speed 95 | 120 120 200 95 Average Speed 204 | 120 197 209 211 Slowest Speed 400 | 120 400 215 240 Overloaded Moves . | . . . . Propulsion Burnouts . | . . . . Robots Hopped . | . . . . Cave-ins Triggered . | . . . . Exploration Rate (%) 54 | 2 86 63 67 Regions Visited 3 Branch Regions 2 Pre-discovered Areas 2 | . 2 . . Known Exits Taken . | . . . . Unknown Exits Taken 3 | 1 1 1 . Scrap Searched . | . . . . Spaces Dug . | . . . . Terrain Destroyed 11 | . 8 . 3 Melee . | . . . . Projectile . | . . . . AOE 11 | . 8 . 3 Terrain Rammed . | . . . . Walls Destroyed . | . . . . Machines Disabled . | . . . . Actions | -11 -10 -10 -10 --------- Run | Jun Mat Min Exi Total 1564 | 3 779 283 499 Wait 154 | . 129 . 25 Move 1212 | 2 520 280 410 Hop . | . . . . Pick Up 25 | . 13 1 11 Fast Attach 4 | . 3 . 1 Attach 12 | . 5 . 7 Detach 3 | . . 2 1 Swap 18 | 1 12 . 5 Drop 27 | . 5 . 22 Fire 98 | . 92 . 6 Melee 11 | . . . 11 Ram . | . . . . Kick . | . . . . Crush . | . . . . Escape Stasis . | . . . . Rewire . | . . . . Trap . | . . . . Miscellaneous . | . . . . Route ------- -11/Junkyard -10/Materials (discovered 4 exits: [*Mat x3] / [*Min]) -10/Mines (discovered 2 exits: [*Mat] / *Exi) -10/Exiles History --------- Turn | Location | Event 1 | -11/Junkyard | Discovered new exit (range 3) 5 | -11/Junkyard | Entered Materials 328 | -10/Materials | Discovered new exit (range 14) 335 | -10/Materials | Build established: Mutant 557 | -10/Materials | Discovered new exit (range 12) 925 | -10/Materials | Core integrity fell below 50% 1059 | -10/Materials | Discovered new exit (range 14) 1191 | -10/Materials | Discovered new exit (range 12) 1460 | -10/Materials | Entered Mines 1519 | -10/Mines | Learned location of 2 exits from Materials 1750 | -10/Mines | Discovered new exit (range 7) 1846 | -10/Mines | Learned Materials security intel 2043 | -10/Mines | Deemed a non-threat by the Exiles lab entrance 2043 | -10/Mines | Discovered new exit (range 5) 2051 | -10/Mines | Entered Exiles 2109 | -10/Exiles | Met 8R-AWN 2141 | -10/Exiles | Met EX-HEX 2249 | -10/Exiles | Met EX-DEC 2530 | -10/Exiles | Met EX-BIN 2563 | -10/Exiles | Aligned with FarCom system 2566 | -10/Exiles | Given EX-Vault access code 2621 | -10/Exiles | Opened EX-Vault 2635 | -10/Exiles | Found Prototype Slashing Weapon 2635 | -10/Exiles | Identified Longsword +1 2651 | -10/Exiles | Found Modified TNC 2657 | -10/Exiles | Found Trap Reconfigurator 2711 | -10/Exiles | Warned to stay clear of 0b10 Research branches 2904 | -10/Exiles | Attacked by the Exiles 3010 | -10/Exiles | Core integrity fell below 20% 3016 | -10/Exiles | Destroyed by 8R-AWN with 8R-AWN's Boregun Last Messages --------------- 03008_ 8R-AWN Prototype Leg severed. 03009_ Penetrated by HV Slug. 03009_ HV Slug penetrates Wall. 03009_ Penetrated by HV Slug. 03009_ Weapon Shielding destroyed. 03009_ HV Slug penetrates Wall. 03010_ Wall collapses. 03010_ Destroyed Prototype Protection. 03011_ Penetrated by HV Slug. 03011_ Critical hit (Destroy). 03011_ Lgt. Treads destroyed. 03011_ HV Slug penetrates Earth. 03011_ Penetrated by HV Slug. 03011_ HV Slug penetrates Earth. 03012_ System corrupted: Component data lost. 03013_ Penetrated by HV Slug. 03013_ HV Slug penetrates Earth. 03013_ Penetrated by HV Slug. 03013_ HV Slug penetrates Earth. 03016_ Penetrated by HV Slug. Map ----- +----------------------------------------------------+ | ?????????????????????????????????????????????????? | | ?????????????????????????????????????????????????? | | ?????????????????????????????????????????????????? | | ?????????????????????????????????????????????????? | | ?????????????????????????????????????????????????? | | ?????????????????????????????????????????????????? | | ?????????????????????????????????????????????????? | | ?????????????????????????????????????????????????? | | ?????????????????????????????????????????????????? | | ?????????????????????????????????????????????????? | | ?????????????????????????????????????????????????? | | ?????????????????????????????????????????????????? | | ?????????????????????????????????????????????????? | | ????????????? ??????????????#######??????????????? | | ????????????? ######???????#!!! "#??????????????? | | ???????????? #""#??????# "#??????????????? | | ????????????? ??????# "#??????????????? | | ????????????" #????## ""#??????????##### | | ????????????? #####" ""#??????????# " | | ?????????????? ##" ""???????????#"" " | | ??????????????? #"" #????????????#"" | | ?????????????????# #????????????#"" | | ????????????????????# ##???????????#"" | | ?????????????????????## "#???????????# | | ??????????????########" =g ###?????????#"" | | ??????????????#=!!"""""! @ ;#????????### | | ??????????????#!![! ! ! # " % ######???### | | ??????????????#![[*! ####" % % ""#####X# | | ??????????????#!![! ;#??#" % | | ??????????????# """"""##;#??#"# % | | ??????????????########### #??#### | | ????????????????????????# #?????### * | | ????????????????????????# #???????### | | ????????????????????????# #?????????## | | ????????????????????????? ???????????## | | ?????????????????????????#????????????##" | | ???????????????????????????????????????#""" | | ??????????????????????????????????????##" | | ??????????????????????????????????????#"" | | ??????????????????????????????????????#""" | | ??????????????????????????????????????""" | | ??????????????????????????????????????""" | | ??????????????????????????????????????"" | | ??????????????????????????????????????""" | | ??????????????????????????????????????"" | | ??????????????????????????????????????#"" | | ??????????????????????????????????????#"""" | | ???????????????????????????????????????# | | ????????????????????????????????????????" | | ????????????????????????????????????????"""" | +----------------------------------------------------+ Best States ------------- Heat Dissipation 35 Energy Generation 12 Energy Capacity 265 Matter Stores 300 Matter Capacity 300 Sight Range 16 Terrain Scan Density 10 Weapon Shielding 33 Evasion (%) 55 Recoil Reduction 2 Item Schematics ----------------- None Robot Schematics ------------------ None Fabricated ------------ Nothing Alien Tech Used ----------------- None Achievements -------------- None Challenges ------------ None Game ------ Seed EnergyCloakAutohacker Manual? 1 Play Time 00:17:08 Cumulative 483.6 hours Start 2023.03.17 @ 00:58:34 End 2023.03.17 @ 01:18:24 Sessions 1 Manual Loads 0 Difficulty Rogue Special Mode None Game No. 524 Rogue 524 Adventurer 0 Explorer 0 Win Type - Total 1 Types 1/0/0/0/0/0/0/0/0 Lore% 61 Gallery% 82 Achievement% 65 Wizard Run 0 Options --------- ASCII 0 Keyboard 0 Movement Mouse Keybinds 0 Fullscreen 2 Font 24/Smallcaps Map View 76x50 Tactical HUD 1 Map Filters NONE Filters NONE Steam 1 RUN: 27007747-eccd-4173-8d32-42d5c1fddf6b